bitfinex/quotes_ETHUSD_20220118
["timestamp","ask_amount","ask_price","bid_price","bid_amount"]
[1642512389629,3.3658828,3124.0,3123.9,3.4305004]
[1642512390434,3.3658828,3124.0,3123.9,3.8145004]
[1642512390637,0.128,3124.9,3123.9,0.384]
[1642512391036,0.00682108,3124.8,3123.9,0.384]
[1642512391439,0.128,3124.9,3122.6,4.344]
[1642512391440,0.03059502,3124.7,3122.6,4.344]
[1642512391635,0.03059502,3124.7,3122.8,0.80026]
[1642512391636,2.12629965,3123.8,3122.8,0.80026]
[1642512391837,2.12629965,3123.8,3122.7,0.00511581]
[1642512392037,0.128,3123.7,3122.9,0.00397896]
[1642512392279,0.128,3123.7,3122.7,0.00511581]
[1642512392480,0.128,3124.4,3122.7,0.00511581]
[1642512392684,0.128,3124.4,3122.8,1.29262408]
[1642512392879,0.00397897,3124.3,3122.8,1.29262408]
[1642512393078,0.128,3124.2,3122.9,0.00397896]
[1642512393279,0.13141054,3124.2,3123.1,1.89509007]
[1642512393479,0.13141054,3124.2,3122.9,0.00397896]
[1642512393480,0.00284212,3124.1,3122.9,0.00397896]
[1642512393695,0.00284212,3124.1,3123.2,0.00227369]
[1642512393696,0.93130382,3124.1,3123.2,0.00227369]
[1642512393879,0.01244861,3123.7,3122.7,0.00511581]
[1642512394480,1.98068114,3123.0,3122.7,0.00511581]
[1642512394681,0.128,3123.6,3122.7,0.00511581]
[1642512394682,0.128,3122.9,3122.7,0.00511581]
[1642512394887,0.80062,3123.5,3122.7,0.00511581]
[1642512394888,0.128,3123.5,3122.7,0.00511581]
[1642512395291,0.128,3123.7,3122.7,0.00511581]
[1642512395489,0.128,3123.9,3122.7,0.00511581]
[1642512395685,0.12970527,3123.9,3123.6,2.31906407]
[1642512395948,0.00113685,3123.8,3122.7,0.00511581]
[1642512396143,0.12913685,3123.8,3122.7,0.00511581]
[1642512396341,0.01278174,3124.5,3122.7,0.00511581]
[1642512396342,0.13084212,3124.1,3122.7,0.00511581]
[1642512396639,0.01278174,3124.5,3122.7,0.00511581]
[1642512396640,0.0022737,3124.0,3122.7,0.00511581]
[1642512396841,0.128,3123.9,3122.7,0.00511581]
[1642512397039,0.00170527,3123.9,3122.9,0.04412004]
[1642512397242,0.00113685,3123.8,3122.9,2.75270928]
[1642512397440,0.00113685,3123.8,3123.0,0.00341054]
[1642512397642,0.01294968,3124.5,3123.0,0.00341054]
[1642512397946,0.128,3124.2,3123.6,1.52150709]
[1642512398144,0.13254739,3124.4,3123.6,1.52150709]
[1642512398342,0.00284212,3124.1,3123.7,2.11354782]
[1642512398542,0.00397897,3124.3,3123.7,2.11354782]
[1642512398741,7.65678484,3124.9,3123.7,2.11354782]
[1642512398742,0.0022737,3124.0,3123.7,2.11354782]
[1642512398942,0.00341054,3124.2,3123.0,0.00341054]
[1642512399141,0.12970527,3123.9,3123.0,0.00341054]
[1642512399342,0.00284212,3124.1,3122.8,0.00454739]
[1642512399544,0.00113685,3123.8,3122.7,0.00511581]
[1642512399785,0.0022737,3124.0,3122.8,0.80021]
[1642512399987,2.01644536,3124.3,3122.9,0.03989763]
[1642512400185,0.00170527,3123.9,3122.9,0.00397896]
[1642512400389,3.30189632,3124.2,3123.0,0.00341054]
[1642512400594,0.00113685,3123.8,3122.7,0.00511581]
[1642512400789,0.13084212,3124.1,3122.7,1.60553581]
[1642512400991,0.00284212,3124.1,3123.5,1.18540578]
[1642512401190,0.0022737,3124.0,3123.5,1.18540578]
[1642512401390,0.0022737,3124.0,3123.0,0.80021]
[1642512401590,0.00170527,3123.9,3122.9,0.80023]
[1642512401789,0.00170527,3123.9,3123.1,0.00284212]
[1642512401992,0.128,3124.8,3122.9,0.80023]
[1642512401993,0.00113685,3123.8,3123.6,2.06801176]
[1642512402393,3.59431876,3124.4,3123.6,2.06801176]
[1642512402589,0.128,3124.4,3123.6,2.06801176]
[1642512402790,0.00397897,3124.3,3123.6,2.06801176]
[1642512403194,0.00341054,3124.2,3123.6,2.06801176]
[1642512403435,0.00341054,3124.2,3123.8,1.51639446]
[1642512403645,3.48563282,3124.7,3123.8,1.51639446]
[1642512403646,0.00284212,3124.1,3123.8,1.51639446]
[1642512404042,0.0022737,3124.0,3123.8,1.51639446]
[1642512404241,0.0022737,3124.0,3123.8,5.77859446]
[1642512404441,3.1793738,3124.9,3123.8,5.77859446]
[1642512404442,0.00170527,3123.9,3123.8,5.77859446]
[1642512405643,0.00170527,3123.9,3123.8,6.07859446]
[1642512405848,0.00170527,3123.9,3123.8,7.67419446]
[1642512406043,2.72977477,3124.9,3123.8,6.67419446]
[1642512406246,2.06625325,3124.7,3124.0,2.39986]
[1642512406443,3.1793738,3124.6,3124.0,0.384]
[1642512406643,3.1793738,3124.6,3123.8,4.2622]
[1642512406644,0.128,3124.5,3123.8,4.2622]
[1642512406844,0.13141054,3124.5,3123.8,4.2622]
[1642512407043,2.06625325,3124.7,3123.8,4.2622]
[1642512407044,0.00284212,3124.4,3123.8,4.2622]
[1642512407482,6.03714857,3124.8,3123.8,4.2622]
[1642512407483,2.30120375,3124.0,3123.8,4.2622]
[1642512407881,2.30120375,3124.0,3123.0,0.00341054]
[1642512408282,2.30120375,3124.0,3122.8,0.8003]
[1642512408486,2.03312035,3123.3,3122.6,1.60058]
[1642512408681,0.128,3124.2,3122.9,0.00568423]
[1642512408883,0.12970527,3124.2,3122.9,2.34261264]
[1642512409085,4.00411106,3124.5,3122.9,2.34261264]
[1642512409086,0.00113685,3124.1,3122.9,2.34261264]
[1642512409287,0.00113685,3124.1,3123.0,0.00511581]
[1642512409586,0.00284212,3124.4,3123.7,2.10381614]
[1642512409786,0.00284212,3124.4,3123.5,4.5794]
[1642512409985,0.0022737,3124.3,3123.5,4.5794]
[1642512410187,2.73221647,3124.3,3123.6,0.00170527]
[1642512410388,0.00170527,3124.2,3123.6,0.00170527]
[1642512410787,0.00113685,3124.1,3123.6,0.00170527]
[1642512411231,0.00170527,3124.2,3123.6,0.00170527]
[1642512411435,0.00170527,3124.2,3123.7,0.04009192]
[1642512411635,0.00113685,3124.1,3123.6,0.00170527]
[1642512411838,2.72994277,3124.4,3123.6,0.00170527]
[1642512412037,2.72994277,3124.4,3123.6,0.00284212]
[1642512412238,2.73164804,3124.4,3123.6,0.00284212]
[1642512412840,2.73164804,3124.4,3123.7,0.80008]
[1642512413240,2.73164804,3124.4,3123.8,0.00170527]
[1642512413543,0.00170527,3124.4,3123.8,0.00170527]
[1642512415812,0.00170527,3124.4,3123.9,1.48599914]
[1642512416217,0.00170527,3124.4,3123.8,0.00170527]
[1642512417416,0.00170527,3124.4,3123.7,5.843906]
[1642512417615,0.00170527,3124.4,3123.8,0.00170527]
[1642512418532,2.26566834,3124.1,3123.8,0.00170527]
[1642512419136,2.26566834,3124.1,3123.7,0.00227369]
[1642512419335,0.00170527,3124.4,3123.8,0.06011835]
[1642512419541,0.00170527,3124.4,3123.9,1.93983739]
[1642512419735,0.00170527,3124.4,3123.9,1.94097424]
[1642512419937,0.00170527,3124.4,3124.0,0.03862689]
[1642512420138,0.00170527,3124.4,3124.0,0.7999786]
[1642512420537,0.00170527,3124.4,3124.0,2.97896296]
[1642512420739,0.00170527,3124.4,3124.1,0.3]
[1642512420939,0.00170527,3124.4,3124.2,0.04667795]
[1642512421140,0.00170527,3124.4,3124.1,2.39965]
[1642512421938,0.00170527,3124.4,3124.2,0.79989]
[1642512422380,0.00170527,3124.4,3124.1,1.59975]
[1642512422580,0.00170527,3124.4,3124.0,1.59993]
[1642512422780,0.00170527,3124.4,3123.9,0.00113685]
[1642512423181,0.00170527,3124.4,3123.8,0.00170527]
[1642512423382,0.01250298,3124.1,3123.6,0.00284212]
[1642512423585,0.128,3124.0,3123.6,0.00284212]
[1642512423789,2.18894326,3123.7,3123.6,0.00284212]
[1642512423992,0.128,3124.0,3123.6,0.00284212]
[1642512424388,0.128,3124.3,3123.6,0.00284212]
[1642512424588,0.128,3124.3,3122.9,4.28532108]
[1642512424788,0.128,3124.3,3123.0,0.00625266]
[1642512425190,0.128,3124.3,3123.3,0.80025]
[1642512425191,1.75652868,3124.1,3123.3,0.80025]
[1642512425591,1.75652868,3124.1,3123.4,0.00397896]
[1642512425790,0.00170527,3124.4,3124.2,1.48029205]
[1642512426044,0.00170527,3124.4,3124.2,0.8559]
[1642512427144,0.00170527,3124.4,3124.1,4.2822]
[1642512428746,0.00170527,3124.4,3124.1,5.96240995]
[1642512428948,0.00170527,3124.4,3124.1,4.2822]
[1642512429991,0.00170527,3124.4,3124.1,5.88218]
[1642512430187,0.00170527,3124.4,3124.2,0.03877072]
[1642512430390,0.00170527,3124.4,3124.3,1.35374404]
[1642512430590,0.00170527,3124.4,3124.3,6.05374404]
[1642512430788,0.00170527,3124.4,3124.3,7.73377735]
[1642512431187,0.00170527,3124.4,3124.3,8.73377735]
[1642512431390,0.00170527,3124.4,3124.3,27.68777735]
[1642512431589,2.72965503,3124.8,3124.4,5.45]
[1642512431795,3.21716871,3125.0,3124.6,5.45]
[1642512431992,0.00177398,3125.0,3124.7,5.45]
[1642512432189,1.42221836,3125.4,3125.3,3.43589138]
[1642512432388,1.42221836,3125.4,3125.3,2.21289138]
[1642512432590,1.42221836,3125.4,3125.3,2.96248138]
[1642512432788,1.42221836,3125.7,3125.3,2.96248138]
[1642512433189,0.00454739,3125.5,3125.4,1.78722523]
[1642512433441,0.00454739,3125.5,3125.4,21.74122523]
[1642512433840,0.00454739,3125.5,3125.4,20.74122523]
[1642512434041,0.00454739,3125.5,3125.4,22.04122523]
[1642512434244,0.00454739,3125.5,3125.4,20.74122523]
[1642512434456,0.00454739,3125.5,3125.4,20.84122523]
[1642512434741,0.128025,3126.1,3126.0,1.5497742]
[1642512434942,0.128025,3126.1,3126.0,6.06144515]
[1642512435142,1.42221836,3126.6,3126.1,0.79938]
[1642512435344,1.42221836,3126.6,3126.5,1.37582666]
[1642512435843,1.0,3126.8,3126.5,1.37582666]
[1642512436244,0.00682108,3126.7,3126.5,1.37582666]
[1642512436445,0.00682108,3126.7,3126.6,0.79934]
[1642512436643,0.00625266,3126.6,3125.9,1.98289]
[1642512436843,0.13415266,3126.6,3126.1,0.79948]
[1642512437048,0.00568423,3126.5,3126.1,0.79948]
[1642512437300,0.00568423,3126.5,3126.2,18.57]
[1642512437502,0.00511581,3126.4,3126.3,3.0626464]
[1642512438302,0.00511581,3126.4,3126.3,6.54002443]
[1642512438702,0.00511581,3126.4,3126.3,3.0626464]
[1642512438902,1.42221836,3126.7,3126.4,5.45]
[1642512439104,1.42221836,3126.7,3126.5,0.79928]
[1642512439304,1.0,3126.8,3126.6,0.384]
[1642512440105,1.42221836,3127.1,3126.7,24.02]
[1642512440304,1.42221836,3127.4,3126.9,18.57]
[1642512440507,0.00227369,3127.0,3126.9,19.27]
[1642512440703,0.00227369,3127.0,3126.9,2.48638838]
[1642512440947,0.00227369,3127.0,3126.9,3.48638838]
[1642512441136,0.00227369,3127.0,3126.9,3.28555838]
[1642512442641,0.00227369,3127.0,3126.9,4.58555838]
[1642512442843,0.00227369,3127.0,3126.9,3.58555838]
[1642512443044,0.00227369,3127.0,3126.9,3.28555838]
[1642512443244,0.00227369,3127.0,3126.9,7.13597562]
[1642512443447,0.00227369,3127.0,3126.9,3.58555838]
[1642512443845,0.00227369,3127.0,3126.9,3.28555838]
[1642512444044,0.00227369,3127.0,3126.9,4.58555838]
[1642512445085,0.00227369,3127.0,3126.9,3.58555838]
[1642512445986,1.42221836,3127.3,3127.1,18.57]
[1642512446186,1.42221836,3127.3,3127.1,20.1681781]
[1642512446386,0.00113685,3127.2,3127.1,20.1681781]
[1642512446587,0.00113685,3127.2,3127.1,1.5981781]
[1642512447587,0.00113685,3127.2,3127.0,0.79908]
[1642512447787,0.00113685,3127.2,3127.0,1.18308]
[1642512449038,0.00113685,3127.2,3127.0,0.384]
[1642512449440,0.00113685,3127.2,3126.8,1.59827]
[1642512449441,4.7871034,3127.1,3126.8,1.59827]
[1642512449742,4.7871034,3127.1,3126.6,1.72643]
[1642512449743,2.1650034,3127.1,3126.6,0.12788]
[1642512449945,0.1279,3127.1,3126.6,0.12788]
[1642512450141,0.1279,3127.1,3126.7,0.00170527]
[1642512450341,1.42335521,3127.2,3126.9,1.44729447]
[1642512450543,1.42335521,3127.2,3126.9,2.46509447]
[1642512450742,1.42221836,3127.1,3126.9,2.46509447]
[1642512450943,1.42221836,3127.1,3127.0,26.49486304]
[1642512451143,1.42221836,3127.1,3127.0,26.79486304]
[1642512451442,1.42760054,3127.1,3127.0,2.92486304]
[1642512451844,0.00538218,3127.1,3127.0,2.92486304]
[1642512452044,0.00538218,3127.1,3127.0,3.19536304]
[1642512453090,2.73226017,3127.1,3127.0,3.19536304]
[1642512453290,2.73226017,3127.1,3127.0,2.92486304]
[1642512453891,2.72696017,3127.1,3127.0,2.92486304]
[1642512454093,0.00113685,3127.2,3127.1,24.02]
[1642512454292,0.00113685,3127.2,3127.1,24.404]
[1642512454492,0.00113685,3127.2,3127.1,5.834]
[1642512454691,0.00113685,3127.2,3127.1,6.86702987]
[1642512454899,0.00113685,3127.2,3127.1,25.404]
[1642512455692,0.00113685,3127.2,3127.1,25.4366182]
[1642512455939,1.42221836,3127.8,3127.1,25.4366182]
[1642512455940,1.42221836,3127.8,3127.3,19.40258567]
[1642512456142,1.42221836,3127.8,3127.5,0.7989]
[1642512456342,0.00284211,3127.7,3127.6,0.384]
[1642512456744,1.37506047,3127.8,3127.7,5.45]
[1642512457060,1.37506047,3127.8,3127.7,20.7407]
[1642512457445,2.13332754,3128.0,3127.7,20.7407]
[1642512457651,2.13332754,3128.0,3127.9,1.43652065]
[1642512457845,2.13332754,3128.4,3127.9,1.82052065]
[1642512458044,2.13332754,3128.4,3127.9,20.39052065]
[1642512458247,2.03560124,3128.4,3128.0,5.45]
[1642512458446,2.03560124,3128.4,3128.2,0.79885]
[1642512458646,0.00113684,3128.3,3128.2,0.79885]
[1642512458847,0.00113684,3128.3,3128.2,2.94487283]
[1642512459049,0.00113684,3128.3,3128.2,2.14602283]
[1642512459696,0.00113684,3128.3,3128.1,0.54832284]
[1642512459889,0.00113684,3128.3,3128.2,0.384]
[1642512460091,0.00113684,3128.3,3128.2,20.75279]
[1642512460295,0.00113684,3128.3,3128.2,22.5724148]
[1642512460490,0.00113684,3128.3,3128.2,14.3021855]
[1642512460693,0.00113684,3128.3,3128.2,3.6184148]
[1642512460894,0.00113684,3128.3,3128.2,2.6184148]
[1642512461093,0.00113684,3128.3,3127.9,0.79886]
[1642512461293,0.00113684,3128.3,3128.2,0.00282516]
[1642512462096,0.5547851,3127.5,3127.2,5.39659]
[1642512462297,0.00113684,3128.3,3127.4,5.45]
[1642512462495,0.00113684,3128.3,3127.7,0.79887]
[1642512462696,0.00113684,3128.3,3127.8,1.6972381]
[1642512462900,0.00113684,3128.3,3127.9,2.27813605]
[1642512463096,0.00113684,3128.3,3128.0,0.384]
[1642512463297,0.00113684,3128.3,3128.0,1.384]
[1642512463739,0.00113684,3128.3,3128.1,0.79879]
[1642512463940,0.00113684,3128.3,3128.2,0.384]
[1642512464141,0.00113684,3128.3,3128.2,2.834]
[1642512464341,0.00113684,3128.3,3128.2,0.384]
[1642512465140,0.00113684,3128.3,3128.2,2.984]
[1642512465341,0.00113684,3128.3,3128.2,0.384]
[1642512465545,0.00113684,3128.3,3128.2,1.384]
[1642512465742,0.00113684,3128.3,3128.2,0.384]
[1642512466142,0.00113684,3128.3,3128.2,0.38647545]
[1642512469793,0.00113684,3128.3,3128.2,0.00247545]
[1642512471840,5.45,3128.2,3127.6,1.59795]
[1642512472040,0.00227369,3128.3,3127.6,1.59795]
[1642512472240,0.00113685,3128.1,3127.7,0.00113685]
[1642512472440,0.00170527,3128.2,3127.7,0.00113685]
[1642512472639,4.3,3128.2,3127.4,0.384]
[1642512472841,0.0022737,3128.1,3127.4,2.40397159]
[1642512473041,3.19529876,3128.1,3127.5,0.00113684]
[1642512473249,0.01222975,3127.8,3127.5,0.00113684]
[1642512473449,0.1278,3127.7,3127.5,0.00113684]
[1642512473642,0.1278,3127.7,3126.8,0.79931]
[1642512473842,0.00170527,3128.0,3126.8,0.79931]
[1642512474042,2.10942593,3127.2,3126.9,0.00454738]
[1642512474245,2.10942593,3127.2,3127.0,1.5983]
[1642512474441,2.10942593,3127.2,3127.0,1.5483]
[1642512474686,6.36829604,3127.6,3127.1,0.00341054]
[1642512475092,6.36829604,3127.6,3127.1,0.00023554]
[1642512475392,0.00203816,3127.5,3127.1,0.00023554]
[1642512475591,0.00203816,3127.5,3127.2,0.06011759]
[1642512475794,0.00146973,3127.4,3127.2,0.06011759]
[1642512475996,0.00146973,3127.4,3127.1,2.30894475]
[1642512476193,0.00090131,3127.3,3127.2,0.00172809]
[1642512476594,0.00090131,3127.3,3127.2,0.30172809]
[1642512476793,0.00090131,3127.3,3127.2,21.57306909]
[1642512476993,0.00090131,3127.3,3127.2,22.57306909]
[1642512477395,0.00090131,3127.3,3127.2,21.27306909]
[1642512477997,1.45880097,3127.3,3127.2,20.88906909]
[1642512478852,1.45880097,3127.3,3127.2,21.18906909]
[1642512479053,1.45789966,3127.4,3127.3,5.45]
[1642512479254,0.32898215,3127.4,3127.3,6.70893]
[1642512479558,0.32898215,3127.4,3127.3,30.00664403]
[1642512479755,0.32898215,3127.4,3127.3,32.33393]
[1642512479954,0.00113685,3127.5,3127.3,8.31393]
[1642512480153,2.72698522,3127.4,3127.3,2.25893]
[1642512480353,2.72698522,3127.4,3127.3,7.01393]
[1642512480953,2.72698522,3127.4,3127.3,7.31393]
[1642512480954,2.69871565,3127.4,3127.3,7.31393]
[1642512481157,0.00113685,3127.5,3127.3,7.04738928]
[1642512481353,0.00113685,3127.5,3127.4,18.57]
[1642512481553,0.00113685,3127.5,3127.4,19.06548791]
[1642512481754,0.00113685,3127.5,3127.4,0.46]
[1642512481954,0.00113685,3127.5,3127.4,0.49681396]
[1642512482186,0.00113685,3127.5,3127.4,0.46]
[1642512482390,0.00113685,3127.5,3127.3,6.55393]
[1642512482391,0.00113685,3127.5,3127.2,0.00172809]
[1642512482588,0.1279,3127.4,3127.2,0.00172809]
[1642512483985,0.12903685,3127.5,3127.2,0.00172809]
[1642512484186,0.00113685,3127.5,3127.2,0.00172809]
[1642512484386,0.00113685,3127.5,3127.2,3.20172809]
[1642512486344,0.00776197,3127.5,3127.2,3.2]
[1642512487343,0.00776197,3127.5,3127.2,1.872]
[1642512487542,5.46293889,3127.3,3127.2,1.872]
[1642512489044,5.46293889,3127.3,3127.2,0.5439]
[1642512489444,5.46293889,3127.3,3127.1,0.00023554]
[1642512489445,5.45,3127.2,3127.1,0.00023554]
[1642512489694,5.45,3127.1,3125.8,0.46]
[1642512489889,0.7996335,3126.9,3125.8,0.46]
[1642512490089,0.7996335,3126.9,3125.9,0.00772239]
[1642512490291,0.1279,3126.8,3125.9,0.00772239]
[1642512490490,2.2408298,3126.7,3125.9,0.00772239]
[1642512490890,0.1279,3126.6,3125.9,0.00772239]
[1642512491501,1.61180994,3126.5,3125.8,0.00829081]
[1642512491690,1.61180994,3126.5,3124.4,1.59951]
[1642512491691,6.24994,3126.3,3124.5,3.18786202]
[1642512491890,1.9496121,3124.6,3124.4,0.46]
[1642512492293,1.9496121,3124.6,3124.5,72.5]
[1642512492493,0.9323,3125.6,3124.5,75.033]
[1642512492494,0.128,3125.5,3124.5,75.033]
[1642512492694,0.8000508,3125.2,3124.5,67.64116825]
[1642512492896,0.01289317,3125.0,3123.8,0.127851]
[1642512493097,0.17887869,3124.9,3123.8,0.127851]
[1642512493293,0.0122998,3123.9,3122.6,8.4092]
[1642512493545,0.128,3123.8,3123.2,2.03000489]
[1642512493744,1.1353998,3123.9,3123.2,2.03000489]
[1642512493944,1.1353998,3123.9,3123.3,43.39963751]
[1642512494248,1.1353998,3123.9,3123.4,42.44989308]
[1642512494444,1.8078276,3123.9,3123.4,42.44989308]
[1642512494647,1.8078276,3123.9,3123.5,38.87262166]
[1642512494850,0.128,3123.8,3123.5,38.87262166]
[1642512495050,0.128,3123.8,3123.6,29.72264736]
[1642512495250,24.02113684,3123.7,3122.6,8.4092]
[1642512495451,0.01268964,3123.1,3122.7,100.0]
[1642512495652,0.80073,3123.0,3122.7,0.00454739]
[1642512495858,0.128,3122.9,3122.7,33.40454739]
[1642512496151,0.128,3123.0,3122.8,25.60397897]
[1642512496350,1.00668964,3123.1,3122.8,0.00397897]
[1642512496550,1.00668964,3123.1,3122.9,0.00341054]
[1642512496551,0.01268964,3123.1,3122.9,0.00341054]
[1642512496755,5.578,3123.0,3122.9,0.00341054]
[1642512497211,5.45,3123.0,3122.9,0.00341054]
[1642512497604,0.128,3123.4,3122.9,0.00341054]
[1642512498305,0.128,3123.6,3123.1,1.85091737]
[1642512498501,0.00113684,3123.7,3123.1,1.85091737]
[1642512498700,0.00113684,3123.7,3123.3,1.14014193]
[1642512499503,0.00113684,3123.7,3123.6,1.70508854]
[1642512502137,5.12135266,3123.9,3123.6,1.70508854]
[1642512504339,5.12135266,3123.9,3123.8,1.34479732]
[1642512504799,5.12248951,3123.9,3123.8,6.29499732]
[1642512504998,0.00113685,3123.9,3123.8,6.29499732]
[1642512505397,0.00113685,3123.9,3123.8,10.38419732]
[1642512505600,0.00113685,3123.9,3123.8,1.2342]
[1642512505800,0.00113685,3123.9,3123.2,0.00170527]
[1642512505999,0.01283338,3123.4,3123.2,0.00170527]
[1642512506199,0.01283338,3123.4,3122.8,0.00511581]
[1642512506399,0.128,3123.8,3122.8,0.00511581]
[1642512506803,1.80381386,3123.3,3122.8,0.00511581]
[1642512507207,6.97281386,3123.3,3122.8,0.00511581]
[1642512507602,0.128,3123.2,3122.8,0.00511581]
[1642512508203,2.85670744,3123.2,3122.8,0.00511581]
[1642512509239,6.29168345,3123.2,3122.8,0.00511581]
[1642512509440,0.02794624,3123.1,3122.8,0.00511581]
[1642512509642,2.72870744,3123.1,3122.8,0.00511581]
[1642512510742,2.72870744,3123.1,3122.8,3.20511581]
[1642512511141,2.72870744,3123.1,3122.9,0.00454738]
[1642512511343,0.00132012,3123.1,3122.9,0.00454738]
[1642512511642,3.778,3123.0,3122.9,0.00454738]
[1642512511841,0.128,3123.0,3122.9,0.00454738]
[1642512513487,2.85670744,3123.0,3122.9,0.00454738]
[1642512514698,8.31954205,3123.0,3122.9,4.738e-05]
[1642512514895,8.31954205,3123.0,3121.2,0.007]
[1642512514896,0.0231486,3122.8,3121.2,0.007]
[1642512515101,5.578,3122.7,3121.2,0.007]
[1642512515296,5.45,3122.6,3121.2,0.007]
[1642512515499,3.82720026,3122.5,3121.2,0.007]
[1642512515695,0.512,3122.5,3121.3,0.00909478]
[1642512515944,2.34588826,3121.6,3121.3,0.00909478]
[1642512516138,0.8009875,3121.9,3121.3,0.00909478]
[1642512516945,4.3526401,3121.9,3121.3,0.00909478]
[1642512517144,4.6115401,3121.9,3121.3,0.00909478]
[1642512517346,0.80104,3121.8,3121.3,0.00909478]
[1642512517547,3.70264297,3121.7,3121.3,0.00909478]
[1642512517851,1.8318535,3121.6,3121.3,0.00909478]
[1642512518046,3.54113311,3121.5,3121.3,0.00909478]
[1642512518446,3.44352147,3121.5,3121.3,0.00909478]
[1642512518850,3.4340221,3121.6,3121.3,0.00909478]
[1642512519049,4.92870744,3121.4,3121.3,0.00909478]
[1642512519252,2.72870744,3121.4,3121.3,0.00909478]
[1642512520092,2.72870744,3121.5,3121.3,3.20909478]
[1642512520498,2.72870744,3121.5,3121.4,0.00852635]
[1642512520894,3.42936145,3121.5,3121.4,0.00852635]
[1642512521091,2.6328935,3121.6,3121.4,0.00852635]
[1642512521293,3.728,3121.5,3121.4,0.00852635]
[1642512521492,5.578,3121.5,3121.4,0.00852635]
[1642512521896,8.30919358,3121.5,3121.4,0.00852635]
[1642512522493,8.30919358,3121.5,3121.2,0.007]
[1642512522494,24.02,3121.4,3121.2,0.007]
[1642512522692,24.02,3121.4,3120.0,3.6693]
[1642512522693,6.37927,3121.3,3120.0,3.6693]
[1642512522896,0.00398159,3120.9,3120.0,3.6693]
[1642512523098,0.00398159,3120.9,3120.1,0.00738951]
[1642512523099,0.384,3120.9,3120.1,0.00738951]
[1642512523294,0.512,3120.9,3120.1,0.00738951]
[1642512523566,0.80143,3120.7,3119.3,3.79798951]
[1642512523765,5.45,3120.8,3119.7,1.81123473]
[1642512523766,1.7447161,3120.3,3119.7,1.81123473]
[1642512523965,1.7447161,3120.3,3119.4,3.82857896]
[1642512524264,5.1,3120.1,3118.6,1.24348626]
[1642512524464,0.00454738,3120.2,3118.7,3.8554]
[1642512524666,0.00341054,3120.0,3118.7,4.66067897]
[1642512524864,0.00397896,3120.1,3119.0,0.01216771]
[1642512525062,0.00284211,3119.9,3119.6,1.54791705]
[1642512525263,0.00341054,3120.0,3119.6,1.54791705]
[1642512525464,0.00227369,3119.8,3119.6,1.54791705]
[1642512525667,0.00284211,3119.9,3119.7,2.19237928]
[1642512525863,6.23952415,3120.7,3119.7,2.19237928]
[1642512526064,1.74223402,3120.4,3119.1,0.00170527]
[1642512526263,3.60757245,3120.3,3119.1,0.00170527]
[1642512526467,0.01243509,3119.6,3119.1,0.00170527]
[1642512526663,0.127087,3119.5,3119.1,0.00170527]
[1642512527063,0.928877,3119.5,3119.1,0.00170527]
[1642512527293,1.62507062,3119.3,3119.1,0.00170527]
[1642512527494,1.62507062,3119.3,3117.7,0.0033576]
[1642512527495,5.45,3119.1,3117.7,0.0033576]
[1642512527697,3.87799988,3119.0,3117.7,0.0033576]
[1642512527893,3.87799988,3119.0,3118.7,0.0022737]
[1642512527894,0.5122,3119.0,3118.7,0.0022737]
[1642512528297,5.45,3118.7,3117.7,0.0033576]
[1642512528493,0.80202,3118.5,3117.7,0.0033576]
[1642512528698,5.45,3118.3,3115.8,6.61384298]
[1642512528897,5.45,3118.3,3116.7,3.7874]
[1642512528898,0.01238021,3117.9,3116.7,3.7874]
[1642512529093,18.57,3117.7,3116.7,3.7874]
[1642512529293,18.57,3117.7,3115.9,8.45416846]
[1642512529294,1.93911653,3116.7,3115.9,8.45416846]
[1642512529499,1.93911653,3116.7,3115.8,5.28434298]
[1642512529500,0.01293197,3116.5,3115.8,5.28434298]
[1642512529695,0.384,3116.4,3116.0,115.79083805]
[1642512529899,1.14444211,3116.4,3115.9,98.86254505]
[1642512530100,0.00227369,3116.3,3116.1,10.65430219]
[1642512530297,5.9623,3116.2,3116.0,54.86183346]
[1642512530502,5.9623,3116.2,3114.3,0.00422894]
[1642512530503,7.86963527,3116.2,3114.3,0.00422894]
[1642512530700,1.787844,3114.2,3113.5,1.93164339]
[1642512530947,0.01259647,3113.6,3113.5,1.93164339]
[1642512531342,2.38089356,3115.0,3113.6,1.19148543]
[1642512531543,0.01230228,3114.0,3113.6,0.08194207]
[1642512531741,0.384,3115.3,3113.8,5.45]
[1642512531945,0.384,3116.1,3114.9,5.45]
[1642512532140,3.40921069,3117.2,3115.9,0.01209222]
[1642512532342,5.6041,3117.7,3115.9,0.01209222]
[1642512532343,0.384,3117.6,3115.9,0.01209222]
[1642512532543,3.685e-05,3116.3,3115.9,0.01209222]
[1642512532740,0.00685793,3117.5,3116.0,0.00166842]
[1642512533143,0.384,3118.0,3116.0,0.00166842]
[1642512533144,1.11867549,3117.3,3116.0,0.00166842]
[1642512533342,0.00628951,3117.4,3116.0,0.00166842]
[1642512533547,0.0126123,3116.9,3116.8,3.97857914]
[1642512533746,0.0126123,3116.9,3116.0,0.00166842]
[1642512533944,0.0126123,3116.9,3116.1,2.31202968]
[1642512533945,0.01605969,3116.9,3116.1,2.31202968]
[1642512534146,0.00287897,3116.8,3116.1,2.31202968]
[1642512534348,0.1283,3117.7,3116.1,2.57074777]
[1642512534544,3.49409988,3118.4,3116.3,0.07056492]
[1642512534795,0.03438564,3118.8,3116.5,0.04452173]
[1642512534796,1.054e-05,3117.4,3116.5,0.04452173]
[1642512534997,0.00512635,3118.3,3116.7,2.30345757]
[1642512535198,0.1345632,3118.5,3116.8,0.384]
[1642512535398,0.80199,3119.0,3116.8,0.384]
[1642512535399,0.0121951,3117.9,3116.8,0.3874]
[1642512535599,0.0121951,3117.9,3116.9,0.00283158]
[1642512535797,0.00228423,3117.8,3117.0,1.53929406]
[1642512535996,0.00228423,3117.8,3117.1,1.80703737]
[1642512536203,0.1283,3118.7,3117.1,2.19103737]
[1642512536204,4.739e-05,3117.7,3117.1,2.19103737]
[1642512536406,1.0,3119.5,3117.3,5.45]
[1642512536407,0.1282,3119.4,3117.3,5.45]
[1642512536601,0.39545525,3120.0,3117.3,5.45]
[1642512536602,0.39545525,3120.0,3119.3,1.39638145]
[1642512536804,0.39545525,3120.0,3117.6,0.01242071]
[1642512536805,1.581e-05,3118.6,3117.7,4.87739951]
[1642512536999,203.63858731,3119.9,3117.7,0.3]
[1642512537198,203.63858731,3119.9,3117.8,0.38853158]
[1642512537199,48.625139,3118.5,3117.8,0.38853158]
[1642512537398,100.00683689,3119.8,3117.9,6.2709]
[1642512537599,61.486435,3118.4,3118.0,0.384]